fUST/lending_fUST_20251231
["ID","MTS","AMOUNT","RATE_DAILY","PERIOD"]
[400167115,1767165109171,500.0,0.00011309,2]
[400167116,1767165109230,500.0,0.00011309,2]
[400167117,1767165109289,500.0,0.00011309,2]
[400167118,1767165109342,264.18632713,0.00011309,2]
[400167122,1767165115576,500.0,0.00011309,2]
[400167123,1767165115632,300.1222463,0.00011309,2]
[400167124,1767165115660,198.93671966,0.00011309,2]
[400167125,1767165117683,500.0,0.00011309,2]
[400167126,1767165117716,245.05485269,0.00011309,2]
[400167127,1767165117754,500.0,0.00011309,2]
[400167128,1767165117824,500.0,0.00011309,2]
[400167129,1767165117859,500.0,0.00011309,2]
[400167130,1767165117894,500.0,0.00011309,2]
[400167131,1767165117929,500.0,0.00011309,2]
[400167132,1767165117959,500.0,0.00011309,2]
[400167133,1767165118010,500.0,0.00011309,2]
[400167135,1767165119451,500.0,0.00011309,2]
[400167136,1767165119499,500.0,0.00011309,2]
[400167137,1767165119666,282.24013111,0.00011309,2]
[400167140,1767165122308,195.0,0.00011309,2]
[400167143,1767165126690,4078.77829654,0.0001131,2]
[400167144,1767165126717,130.13167061,0.0001131,2]
[400167145,1767165128509,500.0,0.00011309,2]
[400167146,1767165128639,312.80273274,0.00011309,2]
[400167147,1767165128726,500.0,0.00011309,2]
[400167148,1767165128799,500.0,0.00011309,2]
[400167149,1767165129064,500.0,0.00011309,2]
[400167150,1767165129333,500.0,0.00011309,2]
[400167151,1767165129481,500.0,0.00011309,2]
[400167155,1767165144041,-177.35812195,0.0001131,2]
[400167156,1767165145555,-281.29,0.0001131,2]
[400167157,1767165147710,-301.65979336,0.0001131,2]
[400167158,1767165147773,597.41779551,0.00011309,2]
[400167159,1767165148022,597.41779551,0.00011309,2]
[400167160,1767165148108,597.41779551,0.00011309,2]
[400167161,1767165148178,597.41779551,0.00011309,2]
[400167162,1767165148302,597.41779551,0.00011309,2]
[400167163,1767165148337,597.41779551,0.00011309,2]
[400167164,1767165149433,2972.56882359,0.0001131,2]
[400167165,1767165149460,2027.43117641,0.0001131,2]
[400167166,1767165150641,-367.44157774,0.0001131,2]
[400167167,1767165172135,289.65417066,0.0001131,2]
[400167168,1767165180808,-7042.88806425,0.0001131,2]
[400167169,1767165180923,-10000.01,0.0001131,2]
[400167170,1767165181044,-10000.01,0.0001131,2]
[400167171,1767165181167,-10000.01,0.0001131,2]
[400167172,1767165181292,-10000.01,0.0001131,2]
[400167173,1767165181429,-10000.01,0.0001131,2]
[400167174,1767165181565,-10000.01,0.0001131,2]
[400167175,1767165183445,-10000.01,0.0001131,2]
[400167176,1767165183561,-10000.01,0.0001131,2]
[400167177,1767165183711,-10000.01,0.0001131,2]
[400167178,1767165195672,-5000.0,0.00011196,2]
[400167179,1767165217268,5000.0,0.00011309,2]
[400167185,1767165233629,5000.0,0.00011309,2]
[400167186,1767165241459,0.01,0.00011309,2]
[400167187,1767165241498,4999.99,0.00011309,2]
[400167188,1767165242413,300.0,0.00011308,2]
[400167194,1767165257295,4700.02,0.00011309,2]
[400167195,1767165257321,299.98,0.00011309,2]
[400167196,1767165265382,5000.0,0.00011309,2]
[400167200,1767165281155,1847.96058126,0.00011309,2]
[400167201,1767165287241,177.2,0.0001,2]
[400167202,1767165288980,2674.86941874,0.00011309,2]
[400167203,1767165289006,2325.13058126,0.00011309,2]
[400167204,1767165289129,177.2,0.000102,2]
[400167205,1767165290892,1009.81045584,0.0001121,2]
[400167206,1767165291013,177.2,0.000104,2]
[400167207,1767165302166,300.0,0.00011308,2]
[400167208,1767165302230,300.0,0.00011308,2]
[400167209,1767165303272,300.0,0.00011308,2]
[400167210,1767165308504,300.0,0.00011308,2]
[400167211,1767165310324,1200.0,0.00011308,2]
[400167212,1767165312680,3910.6689629,0.00011309,2]
[400167213,1767165312745,1089.3310371,0.00011309,2]
[400167215,1767165317462,-500.0,0.00011309,2]
[400167216,1767165317562,-518.53506659,0.00011309,2]
[400167217,1767165317646,-500.0,0.00011309,2]
[400167218,1767165317726,-598.20804962,0.00011309,2]
[400167219,1767165317801,-500.0,0.00011309,2]
[400167220,1767165317866,-500.0,0.00011309,2]
[400167221,1767165317936,-500.0,0.00011309,2]
[400167222,1767165318012,-280.65160611,0.00011309,2]
[400167223,1767165318077,-199.34374529,0.00011309,2]
[400167224,1767165333411,500.0,0.00011309,2]
[400167225,1767165333489,500.0,0.00011309,2]
[400167226,1767165333552,500.0,0.00011309,2]
[400167227,1767165333622,306.53306478,0.00011309,2]
[400167228,1767165333681,193.46693522,0.00011309,2]
[400167229,1767165333760,500.0,0.00011309,2]
[400167230,1767165333827,500.0,0.00011309,2]
[400167231,1767165333890,500.0,0.00011309,2]
[400167232,1767165333969,500.0,0.00011309,2]
[400167233,1767165334049,500.0,0.00011309,2]
[400167234,1767165334129,500.0,0.00011309,2]
[400167235,1767165334197,500.0,0.00011309,2]
[400167236,1767165334265,500.0,0.00011309,2]
[400167237,1767165334330,500.0,0.00011309,2]
[400167238,1767165334398,500.0,0.00011309,2]
[400167239,1767165334606,500.0,0.00011309,2]
[400167240,1767165334672,500.0,0.00011309,2]
[400167241,1767165334737,500.0,0.00011309,2]
[400167242,1767165334807,500.0,0.00011309,2]
[400167243,1767165334872,500.0,0.00011309,2]
[400167244,1767165334942,500.0,0.00011309,2]
[400167245,1767165335008,500.0,0.00011309,2]
[400167246,1767165335074,500.0,0.00011309,2]
[400167247,1767165335141,500.0,0.00011309,2]
[400167248,1767165335210,306.54306478,0.00011309,2]
[400167249,1767165335273,193.45693522,0.00011309,2]
[400167250,1767165335347,500.0,0.00011309,2]
[400167251,1767165335416,500.0,0.00011309,2]
[400167252,1767165335501,500.0,0.00011309,2]
[400167253,1767165335569,500.0,0.00011309,2]
[400167254,1767165335636,500.0,0.00011309,2]
[400167255,1767165335706,500.0,0.00011309,2]
[400167256,1767165335776,500.0,0.00011309,2]
[400167257,1767165335843,638.0788408,0.00011309,2]
[400167258,1767165335910,500.0,0.00011309,2]
[400167259,1767165335976,500.0,0.00011309,2]
[400167260,1767165336039,500.0,0.00011309,2]
[400167261,1767165336113,500.0,0.00011309,2]
[400167262,1767165336180,500.0,0.00011309,2]
[400167263,1767165336253,500.0,0.00011309,2]
[400167264,1767165336320,500.0,0.00011309,2]
[400167265,1767165336391,500.0,0.00011309,2]
[400167266,1767165336466,500.0,0.00011309,2]
[400167267,1767165336535,500.0,0.00011309,2]
[400167268,1767165336624,500.0,0.00011309,2]
[400167269,1767165336708,168.47422398,0.00011309,2]
[400167270,1767165336769,331.52577602,0.00011309,2]
[400167271,1767165336842,500.0,0.00011309,2]
[400167272,1767165336956,5000.0,0.00011309,2]
[400167273,1767165347835,-334.59275989,0.00011309,2]
[400167274,1767165347895,-1200.0,0.00011309,2]
[400167275,1767165353872,500.0,0.00011309,2]
[400167276,1767165353943,330.61699706,0.00011309,2]
[400167277,1767165359122,5000.0,0.00011309,2]
[400167278,1767165360554,500.0,0.00011309,2]
[400167279,1767165360631,526.13572722,0.00011309,2]
[400167280,1767165360844,74.07175594,0.00011309,2]
[400167281,1767165360906,425.92824406,0.00011309,2]
[400167282,1767165360973,500.0,0.00011309,2]
[400167283,1767165361045,500.0,0.00011309,2]
[400167284,1767165361109,500.0,0.00011309,2]
[400167285,1767165361173,500.0,0.00011309,2]
[400167286,1767165361239,500.0,0.00011309,2]
[400167287,1767165361320,500.0,0.00011309,2]
[400167288,1767165361387,500.0,0.00011309,2]
[400167289,1767165361453,500.0,0.00011309,2]
[400167290,1767165361531,212.9747482,0.00011309,2]
[400167291,1767165361596,500.0,0.00011309,2]
[400167292,1767165361662,500.0,0.00011309,2]
[400167293,1767165361728,500.0,0.00011309,2]
[400167294,1767165361795,500.0,0.00011309,2]
[400167295,1767165361865,500.0,0.00011309,2]
[400167296,1767165361925,500.0,0.00011309,2]
[400167297,1767165362031,500.0,0.00011309,2]
[400167298,1767165362092,500.0,0.00011309,2]
[400167299,1767165362160,500.0,0.00011309,2]
[400167300,1767165362229,500.0,0.00011309,2]
[400167301,1767165362818,300.0,0.00011309,2]
[400167304,1767165373304,499.99999999,0.00011309,2]
[400167305,1767165381354,381.88135113,0.00011309,2]
[400167306,1767165381987,5000.0,0.0001131,2]
[400167307,1767165392339,562.46460236,0.0001121,2]
[400167308,1767165405608,3555.66404652,0.0001131,2]
[400167309,1767165405667,1444.33595348,0.0001131,2]
[400167310,1767165418091,-2958.57669614,0.0001131,2]
[400167311,1767165418240,-10000.01,0.0001131,2]
[400167312,1767165418431,-10000.01,0.0001131,2]
[400167313,1767165418663,-10000.01,0.0001131,2]
[400167314,1767165418845,-10000.01,0.0001131,2]
[400167315,1767165420685,-500.0,0.00011309,2]
[400167316,1767165420814,-9000.01,0.0001131,2]
[400167317,1767165420876,-10000.01,0.0001131,2]
[400167318,1767165421211,-573.47755831,0.00011309,2]
[400167319,1767165421345,-8853.05488338,0.0001131,2]
[400167320,1767165444238,1479.09,0.00011026,2]
[400167335,1767165467533,226.26,0.0001,2]
[400167337,1767165509327,-300.0,0.00011196,2]
[400167338,1767165541980,156.0,0.000287,120]
[400167342,1767165629584,5000.0,0.00012,3]
[400167348,1767165653598,5000.0,0.00012,3]
[400167351,1767165676624,5000.0,0.00012,3]
[400167356,1767165700038,5000.0,0.00011026,2]
[400167357,1767165722943,3294.66,0.00011026,2]
[400167358,1767165722995,1705.34,0.00011026,2]
[400167359,1767165746371,5000.0,0.00011026,2]
[400167360,1767165769689,3294.67,0.00011026,2]
[400167361,1767165769745,1705.33,0.00011026,2]
[400167363,1767165793754,5000.0,0.00011026,2]
[400167365,1767165817092,3294.68,0.00011026,2]
[400167366,1767165817150,1705.32,0.00011026,2]
[400167367,1767165840853,5000.0,0.00011026,2]
[400167368,1767165863940,3294.69,0.00011026,2]
[400167369,1767165863994,1705.31,0.00011026,2]
[400167370,1767165866151,572.0392103,0.00010959,2]
[400167371,1767165876532,176.151468,0.00010357,2]
[400167372,1767165876657,176.151468,0.00010357,120]
[400167379,1767165887137,5000.0,0.00011026,2]
[400167381,1767165910194,2546.5093217,0.00011026,2]
[400167382,1767165910268,2453.4906783,0.00011026,2]
[400167384,1767165933064,5000.0,0.00011026,2]
[400167390,1767165956568,2546.5193217,0.00011026,2]
[400167391,1767165956641,2453.4806783,0.00011026,2]
[400167396,1767165979439,5000.0,0.00011026,2]
[400167397,1767166002622,2546.5293217,0.00011026,2]
[400167426,1767166063537,999.0,0.00010959,2]
[400167441,1767166107852,269.91084922,0.00010934,2]
[400167452,1767166109221,-187.23850627,0.00011026,2]
[400167455,1767166110678,-503.11240054,0.00011026,2]
[400167458,1767166112669,-222.83310953,0.00011026,2]
[400167459,1767166114339,-625.42610291,0.00011026,2]
[400167462,1767166117741,-544.06,0.00011026,2]
[400167467,1767166120439,-370.80055905,0.00011026,2]
[400167468,1767166120465,-161.02517434,0.00011034,2]
[400167469,1767166122042,-138.97482566,0.00011034,2]
[400167470,1767166122067,-374.93897584,0.00011034,2]
[400167473,1767166128672,-231.69814697,0.00011034,2]
[400167474,1767166130739,-218.71,0.00011034,2]
[400167476,1767166133329,-192.71981792,0.00011034,2]
[400167479,1767166136193,-181.93305927,0.00011034,2]
[400167480,1767166136215,-150.0,0.00011035,2]
[400167481,1767166136241,-39.25028351,0.00011035,2]
[400167482,1767166137253,5000.0,0.00011026,2]
[400167483,1767166137452,-120.34407398,0.00011035,2]
[400167484,1767166137476,-317.64684985,0.00011035,2]
[400167493,1767166159144,-182.35315015,0.00011035,2]
[400167494,1767166159165,-150.0,0.00011035,2]
[400167495,1767166159186,-169.6762874,0.00011035,2]
[400167496,1767166159208,-150.0,0.00011035,2]
[400167497,1767166159229,-222.4123433,0.00011035,2]
[400167498,1767166159249,-248.15764825,0.00011172,2]
[400167499,1767166159270,-500.0,0.00011172,2]
[400167500,1767166159290,-222.58874076,0.00011172,2]
[400167501,1767166159312,-327.90090469,0.00011196,2]
[400167502,1767166159332,-577.0,0.00011196,2]
[400167503,1767166159353,-186.85163856,0.00011203,2]
[400167504,1767166159374,-300.0,0.00011206,2]
[400167505,1767166159396,-500.0,0.00011207,2]
[400167506,1767166159418,-267.31694579,0.00011207,2]
[400167507,1767166159443,-610.77620188,0.00011207,2]
[400167509,1767166159623,-610.77620188,0.00011207,2]
[400167510,1767166159647,-610.77620188,0.00011207,2]
[400167511,1767166159667,-394.47820649,0.00011207,2]
[400167512,1767166159691,-610.77620188,0.00011207,2]
[400167513,1767166159716,-610.77620188,0.00011207,2]
[400167514,1767166159737,-500.0,0.00011207,2]
[400167515,1767166159760,-610.77620188,0.00011207,2]
[400167516,1767166159784,-610.77620188,0.00011207,2]
[400167517,1767166159808,-610.77620188,0.00011207,2]
[400167518,1767166159829,-500.0,0.00011207,2]
[400167519,1767166159853,-610.77620188,0.00011207,2]
[400167520,1767166159876,-610.77620188,0.00011207,2]
[400167521,1767166159900,-610.77620188,0.00011207,2]
[400167522,1767166159923,-610.77620188,0.00011207,2]
[400167523,1767166159948,-610.77620188,0.00011207,2]
[400167524,1767166159973,-610.77620188,0.00011207,2]
[400167525,1767166159996,-610.77620188,0.00011207,2]
[400167526,1767166160019,-610.77620188,0.00011207,2]
[400167527,1767166160042,-500.0,0.00011207,2]
[400167528,1767166160062,-154.28699706,0.00011207,2]
[400167529,1767166160085,-633.38347663,0.00011207,2]
[400167530,1767166160109,-500.0,0.00011207,2]
[400167531,1767166160133,-288.68978329,0.00011207,2]
[400167532,1767166160155,-301.44163869,0.00011207,2]
[400167533,1767166160178,-500.0,0.00011207,2]
[400167534,1767166160200,-500.0,0.00011207,2]
[400167535,1767166160222,-500.0,0.00011207,2]
[400167536,1767166160245,-500.0,0.00011207,2]
[400167537,1767166160269,-566.42145681,0.00011207,2]
[400167538,1767166160296,-620.17275883,0.00011207,2]
[400167539,1767166160322,-620.17275883,0.00011207,2]
[400167540,1767166160348,-620.17275883,0.00011207,2]
[400167541,1767166160373,-620.17275883,0.00011207,2]
[400167542,1767166160398,-620.17275883,0.00011207,2]
[400167543,1767166160422,-620.17275883,0.00011207,2]
[400167544,1767166160446,-620.17275883,0.00011207,2]
[400167545,1767166160469,-620.17275883,0.00011207,2]
[400167546,1767166160492,-620.17275883,0.00011207,2]
[400167547,1767166160516,-620.17275883,0.00011207,2]
[400167548,1767166160539,-610.83682484,0.00011207,2]
[400167549,1767166160563,-610.83682484,0.00011207,2]
[400167550,1767166160587,-610.83682484,0.00011207,2]
[400167551,1767166160618,-13530.15077459,0.00011208,2]
[400167552,1767166160832,3731.09915078,0.00011026,2]
[400167554,1767166165000,-1268.90084922,0.00011026,2]
[400167568,1767166183543,1092.22945248,0.00011197,2]
[400167574,1767166195309,-183.25104744,0.00011207,2]
[400167580,1767166209410,1200.0,0.00011206,2]
[400167581,1767166210322,-300.0,0.00011207,2]
[400167582,1767166210391,-300.0,0.00011207,2]
[400167583,1767166210459,-300.0,0.00011207,2]
[400167584,1767166210523,-300.0,0.00011207,2]
[400167585,1767166210586,-577.0,0.00011207,2]
[400167586,1767166210649,-300.0,0.00011207,2]
[400167592,1767166222157,150.0,0.00011035,2]
[400167593,1767166222309,150.0,0.00011172,2]
[400167594,1767166222769,206.49040661,0.00011035,2]
[400167595,1767166222832,500.0,0.00011035,2]
[400167596,1767166222940,500.0,0.00011172,2]
[400167597,1767166223318,500.0,0.00011035,2]
[400167598,1767166223436,500.0,0.00011035,2]
[400167599,1767166223500,500.0,0.00011172,2]
[400167600,1767166223561,150.0,0.00011035,2]
[400167601,1767166223639,500.0,0.00011172,2]
[400167602,1767166223711,208.19610497,0.00011172,2]
[400167603,1767166223791,185.07294294,0.00011035,2]
[400167604,1767166225483,-321.3428866,0.00011207,2]
[400167606,1767166225942,152.45803495,0.00011035,2]
[400167607,1767166226033,150.0,0.00011035,2]
[400167608,1767166227206,150.0,0.00011035,2]
[400167609,1767166227840,150.0,0.00011172,2]
[400167627,1767166231917,-2034.19737819,0.00011208,2]
[400167628,1767166231929,-11706.01397739,0.00011208,2]
[400167629,1767166231939,-356.90616913,0.00011208,2]
[400167630,1767166231951,-525.06757274,0.00011208,2]
[400167631,1767166231962,-1201.57535737,0.00011208,2]
[400167632,1767166231984,-13998.35943124,0.00011208,2]
[400167652,1767166237952,-956647.72933935,0.00011208,2]
[400167654,1767166237963,-449.97168192,0.0001121,2]
[400167656,1767166237972,-50000.0,0.00011303,2]
[400167658,1767166237982,-184.01414135,0.00011303,2]
[400167659,1767166237991,-151.0,0.00011303,2]
[400167661,1767166238001,-151.0,0.00011303,2]
[400167663,1767166238012,-151.0,0.00011303,2]
[400167665,1767166238020,-151.0,0.00011303,2]
[400167667,1767166238029,-151.0,0.00011303,2]
[400167669,1767166238040,-151.0,0.00011303,2]
[400167671,1767166238051,-151.0,0.00011303,2]
[400167673,1767166238061,-151.0,0.00011303,2]
[400167675,1767166238071,-151.0,0.00011303,2]
[400167677,1767166238080,-151.0,0.00011303,2]
[400167679,1767166238089,-242.32257062,0.00011303,2]
[400167681,1767166238098,-184.00470644,0.00011308,2]
[400167683,1767166238107,-308.991,0.00011308,2]
[400167685,1767166238117,-500.0,0.00011309,2]
[400167687,1767166238126,-203.05185779,0.00011309,2]
[400167689,1767166238135,-206.87843062,0.00011309,2]
[400167691,1767166238145,-500.0,0.00011309,2]
[400167693,1767166238154,-500.0,0.00011309,2]
[400167694,1767166238163,-150.0,0.00011309,2]
[400167696,1767166238173,-1000.0,0.0001131,2]
[400167698,1767166238183,-1000.0,0.0001131,2]
[400167699,1767166238192,-1000.0,0.0001131,2]
[400167700,1767166238201,-1000.0,0.0001131,2]
[400167701,1767166238210,-1000.0,0.0001131,2]
[400167702,1767166238219,-1000.0,0.0001131,2]
[400167703,1767166238229,-1000.0,0.0001131,2]
[400167704,1767166238238,-1000.0,0.0001131,2]
[400167705,1767166238248,-1000.0,0.0001131,2]
[400167706,1767166238257,-1000.0,0.0001131,2]
[400167707,1767166238267,-1000.0,0.0001131,2]
[400167708,1767166238276,-1009.65882188,0.0001131,2]
[400167709,1767166238285,-770.92732356,0.00011409,2]
[400167710,1767166238295,-500.0,0.00011446,2]
[400167711,1767166238304,-500.0,0.00011446,2]
[400167712,1767166238313,-500.0,0.00011446,2]
[400167713,1767166238322,-197.11954527,0.00011446,2]
[400167714,1767166238332,-300.0,0.00011535,2]
[400167715,1767166238341,-300.0,0.00011535,2]
[400167716,1767166238351,-300.0,0.00011535,2]
[400167718,1767166238360,-300.0,0.00011535,2]
[400167720,1767166238369,-300.0,0.00011535,2]
[400167721,1767166238379,-300.0,0.00011535,2]
[400167723,1767166238388,-300.0,0.00011535,2]
[400167725,1767166238397,-300.0,0.00011535,2]
[400167727,1767166238408,-300.0,0.00011535,2]
[400167729,1767166238417,-300.0,0.00011535,2]
[400167731,1767166238427,-300.0,0.00011535,2]
[400167732,1767166238436,-300.0,0.00011535,2]
[400167734,1767166238445,-300.0,0.00011535,2]
[400167736,1767166238455,-300.0,0.00011535,2]
[400167738,1767166238464,-300.0,0.00011535,2]
[400167755,1767166238610,-600.0,0.00011535,2]
[400167757,1767166238625,-500.0,0.00011583,2]
[400167759,1767166238634,-500.0,0.00011583,2]
[400167761,1767166238643,-500.0,0.00011583,2]
[400167763,1767166238652,-500.0,0.0001172,2]
[400167765,1767166238662,-500.0,0.0001172,2]
[400167767,1767166238671,-500.0,0.0001172,2]
[400167769,1767166238681,-39081.0651434,0.00011837,2]
[400167771,1767166238690,-500.0,0.00011857,2]
[400167772,1767166238699,-500.0,0.00011857,2]
[400167774,1767166238708,-500.0,0.00011857,2]
[400167775,1767166238717,-500.0,0.00011994,2]
[400167776,1767166238727,-500.0,0.00011994,2]
[400167777,1767166238736,-500.0,0.00011994,2]
[400167778,1767166238746,-13720.03939113,0.00012012,2]
[400167779,1767166238755,-1680.0,0.00012125,2]
[400167780,1767166238765,-500.0,0.00012131,2]
[400167781,1767166238774,-500.0,0.00012131,2]
[400167782,1767166238783,-252.7531986,0.00012131,2]
[400167783,1767166238793,-756.7,0.0001221,2]
[400167784,1767166238802,-449.97168188,0.00012218,2]
[400167785,1767166238811,-500.0,0.00012268,2]
[400167786,1767166238820,-500.0,0.00012268,2]
[400167787,1767166238830,-407.0,0.00012313,2]
[400167788,1767166238840,-420.0,0.00012313,2]
[400167789,1767166238850,-300.0,0.00012313,2]
[400167790,1767166238861,-1680.0,0.00012327,2]
[400167791,1767166238871,-300.0,0.00012328,2]
[400167792,1767166238881,-2675.21,0.00012329,2]
[400167793,1767166238890,-2229.34,0.00012329,2]
[400167794,1767166238900,-1857.78,0.00012329,2]
[400167795,1767166238910,-1548.15,0.00012329,2]
[400167796,1767166238919,-1290.13,0.00012329,2]
[400167797,1767166238929,-1075.11,0.00012329,2]
[400167798,1767166238939,-895.92,0.00012329,2]
[400167799,1767166238948,-746.6,0.00012329,2]
[400167800,1767166238959,-622.17,0.00012329,2]
[400167801,1767166238970,-518.47,0.00012329,2]
[400167802,1767166238979,-432.06,0.00012329,2]
[400167803,1767166238993,-360.05,0.00012329,2]
[400167804,1767166239002,-300.04,0.00012329,2]
[400167805,1767166239013,-250.04,0.00012329,2]
[400167806,1767166239022,-208.36,0.00012329,2]
[400167807,1767166239032,-173.64,0.00012329,2]
[400167808,1767166239042,-868.21,0.00012329,2]
[400167809,1767166239051,-500.0,0.00012405,2]
[400167810,1767166239061,-500.0,0.00012405,2]
[400167811,1767166239071,-151.0,0.000125,2]
[400167812,1767166239081,-164.67650055,0.00012542,2]
[400167813,1767166239090,-500.0,0.00012542,2]
[400167814,1767166239099,-491.17925611,0.00012679,2]
[400167815,1767166239109,-720.0,0.00012689,2]
[400167816,1767166239119,-1513.39,0.00012792,2]
[400167817,1767166239129,-151.0,0.000128,2]
[400167818,1767166239139,-9925.60811245,0.000129,2]
[400167819,1767166239148,-1174.16213624,0.00012999,2]
[400167820,1767166239158,-151.0,0.000131,2]
[400167821,1767166239168,-379.18460619,0.00013207,2]
[400167822,1767166239178,-449.97168188,0.00013226,2]
[400167823,1767166239187,-544.63270575,0.00013273,2]
[400167824,1767166239197,-500.0,0.00013273,2]
[400167825,1767166239206,-500.0,0.00013273,2]
[400167826,1767166239215,-500.0,0.00013273,2]
[400167827,1767166239225,-500.0,0.00013273,2]
[400167828,1767166239235,-500.0,0.00013273,2]
[400167829,1767166239245,-500.0,0.00013273,2]
[400167830,1767166239254,-500.0,0.00013273,2]
[400167831,1767166239264,-500.0,0.00013273,2]
[400167832,1767166239274,-500.0,0.00013273,2]
[400167833,1767166239283,-413.99757981,0.00013273,2]
[400167834,1767166239292,-500.0,0.00013273,2]
[400167835,1767166239302,-500.0,0.00013273,2]
[400167836,1767166239312,-500.0,0.00013273,2]
[400167837,1767166239322,-500.0,0.00013273,2]
[400167838,1767166239332,-500.0,0.00013273,2]
[400167839,1767166239342,-500.0,0.00013273,2]
[400167840,1767166239352,-500.0,0.00013273,2]
[400167841,1767166239361,-315.88685405,0.00013273,2]
[400167842,1767166239371,-500.0,0.00013273,2]
[400167843,1767166239380,-500.0,0.00013273,2]
[400167844,1767166239390,-500.0,0.00013273,2]
[400167845,1767166239399,-500.0,0.00013273,2]
[400167846,1767166239409,-500.0,0.00013273,2]
[400167847,1767166239419,-500.0,0.00013273,2]
[400167848,1767166239428,-500.0,0.00013273,2]
[400167849,1767166239438,-500.0,0.00013273,2]
[400167850,1767166239447,-500.0,0.00013273,2]
[400167851,1767166239456,-500.0,0.00013273,2]
[400167852,1767166239466,-500.0,0.00013273,2]
[400167853,1767166239476,-500.0,0.00013273,2]
[400167854,1767166239485,-602.47879957,0.00013273,2]
[400167855,1767166239494,-500.0,0.00013273,2]
[400167856,1767166239503,-500.0,0.00013273,2]
[400167857,1767166239512,-500.0,0.00013273,2]
[400167858,1767166239522,-500.0,0.00013273,2]
[400167859,1767166239531,-500.0,0.00013273,2]
[400167860,1767166239540,-500.0,0.00013273,2]
[400167861,1767166239549,-500.0,0.00013273,2]
[400167862,1767166239558,-500.0,0.00013273,2]
[400167863,1767166239568,-500.0,0.00013273,2]
[400167864,1767166239577,-500.0,0.00013273,2]
[400167865,1767166239586,-500.0,0.00013273,2]
[400167866,1767166239596,-500.0,0.00013273,2]
[400167867,1767166239605,-303.12259815,0.00013296,2]
[400167868,1767166239615,-2351.0,0.00013323,2]
[400167869,1767166239624,-2270.09,0.00013373,2]
[400167870,1767166239634,-151.0,0.000135,2]
[400167871,1767166239643,-587.0,0.00013527,2]
[400167872,1767166239652,-978.0,0.00013559,2]
[400167874,1767166239662,-300.0,0.00013673,2]
[400167876,1767166239671,-1000.0,0.00013698,2]
[400167878,1767166239680,-1000.0,0.00013698,2]
[400167879,1767166239690,-1000.0,0.00013698,2]
[400167881,1767166239699,-1000.0,0.00013698,2]
[400167883,1767166239708,-1000.0,0.00013698,2]
[400167885,1767166239718,-1000.0,0.00013698,2]
[400167887,1767166239727,-1000.0,0.00013698,2]
[400167889,1767166239736,-1008.34593737,0.00013698,2]
[400167891,1767166239746,-606.03,0.00013698,2]
[400167892,1767166239755,-606.03,0.00013698,2]
[400167895,1767166239764,-606.03,0.00013698,2]
[400167897,1767166239774,-606.03,0.00013698,2]
[400167900,1767166239784,-606.03,0.00013698,2]
[400167903,1767166239793,-606.03,0.00013698,2]
[400167906,1767166239802,-606.03,0.00013698,2]